Cogmind - Beta 15 @@@ ROGUE MODE // 2025.05.12 @ 19:39:14 Player: Demo Result: Destroyed by H-61 Shepherd with Heavy Assault Cannon Performance ------------- Evolutions (2) 1000 Regions Visited (3) 600 Robots Destroyed (37) 185 Value Destroyed (830) 830 Prototype IDs (3) 60 Alien Tech Used (0) 0 Bonus (0) 0 TOTAL SCORE: 2675 Bonus ------- None Cogmind --------- Core Integrity 0/550 Matter 295/300 Energy 100/100 System Corruption 0% Temperature Cool (0) Movement Core (50) Location -8/Materials Parts ------- > --- POWER (1) -------- (None) > --- PROPULSION (3) --- (None) > --- UTILITY (5) ------ Hacking Suite Hacking Suite System Shield > --- WEAPON (2) ------- Heavy Mace > --- INVENTORY (5) ---- High-capacity Matter Pod (200) EM Shotgun Advanced Beam Cannon Datajack Peak State ------------ > --- POWER ------------ Backup Power I > --- PROPULSION ------- Backup Propulsion I > --- UTILITY ---------- Hacking Suite Hacking Suite Hacking Suite Hacking Suite System Shield > --- WEAPON ----------- EM Shotgun EM Shotgun > --- INVENTORY -------- High-capacity Matter Pod EM Shotgun Advanced Beam Cannon Datajack Heavy Mace [Rating: 22] Favorites ----------- Power Improved Ion Engine Engine Improved Ion Engine Power Core Nuclear Core Propulsion Light Treads Treads Light Treads Wheel Compact Wheel Hover Unit Airjet Flight Unit Improved Flight Unit Utility Hacking Suite Device Seismic Detector Storage Small Storage Unit Hackware Hacking Suite Weapon Small Laser Energy Gun Small Laser Energy Cannon Advanced Beam Cannon Ballistic Gun Assault Rifle Impact Weapon Heavy Mace Special Melee Weapon Datajack Build | -11 -10 -9 -8 ------- Run | Yrd Mat Mat Mat Slots Evolved 4 | . . 2 2 Power . | . . . . Propulsion 1 | . . . 1 Utility 3 | . . 2 1 Weapon . | . . . . Parts Attached 38 | 5 3 16 14 Power 3 | . . 2 1 Engine 2 | . . 1 1 Core 1 | . . 1 . Reactor . | . . . . Propulsion 13 | 2 1 8 2 Treads 4 | 2 . 2 . Leg . | . . . . Wheel 1 | . 1 . . Hover 7 | . . 5 2 Flight 1 | . . 1 . Utility 8 | 1 1 3 3 Device 2 | . 1 1 . Storage 1 | 1 . . . Processor . | . . . . Hackware 5 | . . 2 3 Protection . | . . . . Artifact . | . . . . Weapon 14 | 2 1 3 8 Energy Gun 5 | 1 . . 4 Energy Cannon 4 | . . 2 2 Ballistic Gun 1 | 1 . . . Ballistic Cannon . | . . . . Launcher . | . . . . Special Weapon . | . . . . Impact Weapon 2 | . . . 2 Slashing Weapon . | . . . . Piercing Weapon . | . . . . Special Melee Weapon 2 | . 1 1 . Unidentified Prototypes 3 | . . 2 1 Parts Lost 22 | . 1 6 15 Power 3 | . . . 3 Propulsion 10 | . 1 3 6 Utility 3 | . . 1 2 Weapon 6 | . . 2 4 Highest Loss Streak 7 | . 1 3 7 To Critical Strikes 1 | . . 1 . Average Backups 4 | . 3 6 5 Power . | . . . . Propulsion 1 | . . 2 . Utility 1 | . 2 1 1 Weapon 1 | . . 1 2 Tool/Special . | . . . . Unused Backups 8 | . . 4 4 Power 1 | . . . 1 Propulsion . | . . . . Utility 1 | . . . 1 Weapon 6 | . . 4 2 Tool/Special . | . . . . Average Slot Usage (%) 65 | . 57 69 68 Engine 4 | . . 7 6 Treads 8 | . 25 4 . Wheel 1 | . 2 1 . Hover 10 | . . 15 15 Device 1 | . . 2 . Storage 4 | . . 7 3 Hackware 15 | . . 15 29 Energy Gun 9 | . 14 7 8 Energy Cannon 1 | . . 2 . Ballistic Gun 3 | . 13 . . Impact Weapon 1 | . . . 4 Special Melee Weapon 1 | . . 3 . Peak Build Rating 22 | 4 5 20 22 Average Rating 11 | 2 4 13 17 On Entrance 6 | . 4 5 16 Naked Turns . | . . . . Heaviest Build 16 | 3 3 16 14 Greatest Support 20 | 3 3 16 20 Greatest Overweight (x) 1 | . . 1 1 Average Overweight (x) . | . . . . Largest Inventory Capacity 8 | 8 5 8 8 Average Capacity 6 | 5 5 7 6 Most Carried 8 | 1 5 8 8 Average Carried 5 | . 3 6 5 Final Capacity 8 | 5 5 8 5 Final Carried 7 | 1 5 7 4 Class Distribution -------------------- 50% | Hacker-Mutant 49% | Mutant Dominant Class ---------------- Mutant | -10/Materials Hacker-Mutant | -9/Materials Hacker-Mutant | -8/Materials Resources | -11 -10 -9 -8 ----------- Run | Yrd Mat Mat Mat Matter Collected 815 | 246 190 279 100 Remotely . | . . . . Salvage Created 1089 | . 235 289 565 Parts 77 | . 19 23 35 Haulers Intercepted 2 | . . . 2 Recyclers Shooed . | . . . . Parts Field Recycled . | . . . . Retrieved Matter . | . . . . Parts Self-Destructed . | . . . . Prevented . | . . . . Kills | -11 -10 -9 -8 ------- Run | Yrd Mat Mat Mat Combat Hostiles Destroyed 26 | . 6 9 11 Melee 1 | . . . 1 Guns 14 | . 6 4 4 Cannons 7 | . . 5 2 AOE 3 | . . . 3 Classes Destroyed 10 | . 5 2 3 Worker 1 | . 1 . . Tunneler 2 | . . 1 1 Hauler 2 | . . . 2 Recycler 1 | . 1 . . Operator 5 | . 1 1 3 Swarmer 12 | . 3 6 3 Cutter 1 | . . . 1 Grunt 6 | . 3 . 3 Sentry 6 | . . 3 3 Hunter 1 | . . . 1 Best Kill Streak 7 | . 3 4 7 Combat Bots Only 5 | . 3 3 5 Max Kills in Single Turn 3 | . 1 1 3 Gunslinging . | . . . . Exploded 2 | . . . 2 Melee 1 | . . . 1 Uniques/NPCs Destroyed . | . . . . Combat | -11 -10 -9 -8 -------- Run | Yrd Mat Mat Mat Hostile Shots Fired 277 | . 84 79 114 Missed 90 | . 33 24 33 Hits 187 | . 51 55 81 Melee 12 | . . . 12 Projectile 175 | . 51 55 69 Critical Strikes 8 | . 1 3 4 Damage Taken 2455 | . 502 665 1288 Core 902 | . 95 254 553 Absorbed by Shields . | . . . . Regen/Repaired (Parts) 86 | . . 86 . Core Remaining (%) 66 | 100 62 36 . Volleys Fired 93 | . 20 33 40 Largest 2 | . 2 2 2 Hottest 118 | . 60 68 118 Shots Fired 137 | . 38 36 63 Gun 106 | . 38 13 55 Cannon 31 | . . 23 8 Launcher . | . . . . Special . | . . . . Kinetic 20 | . 20 . . Thermal 99 | . 18 36 45 Explosive . | . . . . Electromagnetic 18 | . . . 18 Robot Hit Streak 16 | . 6 6 16 Robot Miss Streak 4 | . 3 3 4 Penetration Max . | . . . . Secondary Targets 1 | . . . 1 Max Gunslinging Chain 1 | . . . 1 Shots Hit Robots 102 | . 21 29 52 Core Hits 51 | . 12 13 26 Critical Kills . | . . . . Critical Parts Destroyed 1 | . . . 1 Critical Strikes 1 | . . . 1 Smash 1 | . . . 1 Melee Attacks 16 | . . 8 8 Impact 8 | . . . 8 Slashing . | . . . . Piercing . | . . . . Sneak Attacks 9 | . . 7 2 Combat Hostiles . | . . . . Follow-up Attacks . | . . . . Damage Inflicted 2027 | . 255 357 1415 Guns 871 | . 254 103 514 Cannons 391 | . . 247 144 Explosions 512 | . . . 512 Melee 245 | . . . 245 Ramming 8 | . 1 7 . Kinetic 135 | . 135 . . Thermal 1000 | . 119 350 531 Explosive 363 | . . . 363 Electromagnetic 276 | . . . 276 Impact 245 | . . . 245 Slashing . | . . . . Piercing . | . . . . Highest Corruption 2 | . 2 2 . Average Corruption 2 | . 2 2 . Corruption Purged . | . . . . Corruption Blocked . | . . . . Effects 3 | . 1 2 . Matter Fused 1 | . 1 . . Heat Flow Errors 1 | . . 1 . Energy Discharges 1 | . . 1 . Overload Shots . | . . . . Overflow Damage 285 | . . . 285 Projectiles . | . . . . Explosions 174 | . . . 174 Melee 111 | . . . 111 Knockbacks 1 | . . . 1 Impact 1 | . . . 1 Kinetic . | . . . . Secondary . | . . . . Self-Inflicted Damage 145 | . . 3 142 Shots 2 | . . . 2 Rammed 5 | . 3 2 . Targets Rammed 6 | . 4 2 . Kicked . | . . . . Crushed 1 | . 1 . . Highest Temperature 273 | . 16 273 137 Average Temperature 66 | . 6 86 50 Received Heat Transfer 573 | . 129 210 234 Effects 1 | . . 1 . Interference 1 | . . 1 . Siege Activations . | . . . . Martial Activations . | . . . . Shielding Activations . | . . . . Robots Disrupted . | . . . . Combat Hostiles . | . . . . Robots Corrupted 1 | . . . 1 Combat Hostiles . | . . . . Parts Fried 3 | . . . 3 Impact Corruptions 5 | . . . 5 Robots Melted 1 | . . . 1 Combat Hostiles 1 | . . . 1 Parts Melted 6 | . . 2 4 Heat Transferred 2450 | . 275 754 1421 Parts Sabotaged . | . . . . Parts Stolen . | . . . . Parts Stripped . | . . . . Power Chain Reactions 2 | . . . 2 Alert | -11 -10 -9 -8 ------- Run | Yrd Mat Mat Mat Maximum Alert Level 1 | . . 1 1 Low Security (%) 61 | 100 100 58 22 Level 1 38 | . . 41 77 Level 2 . | . . . . Level 3 . | . . . . Level 4 . | . . . . Level 5 . | . . . . High Security . | . . . . Max Security . | . . . . Peak Influence 380 | . 187 297 380 Initial 120 | . . 70 120 Average 179 | . 98 187 269 Influence Increases 1407 | . 347 490 570 Destroy 0b10 Robot/C 520 | . 120 180 220 Destroy 0b10 Robot/NC 55 | . 15 10 30 Destroy Leader 144 | . 20 50 74 Trap Triggered on 0b10 50 | . . . 50 Successful Hack 21 | . 12 9 . Select Force Hacks 30 | . 30 . . Disable Machine 30 | . . . 30 Destroy Structure 32 | . . 1 31 Partial Spotted 30 | . 30 . . Lose Combat Pursuer 495 | . 120 240 135 Influence Decreases 1047 | . 180 371 496 Entered New Map 263 | . . 97 166 Time Decay 564 | . 170 214 180 Lost Part 220 | . 10 60 150 Squads Dispatched 9 | . 2 2 5 Investigation 2 | . 1 1 . Extermination . | . . . . Reinforcement 7 | . 1 1 5 Assault . | . . . . Garrison . | . . . . Intercept . | . . . . Searches Triggered . | . . . . Construction Impeded 1 | . . . 1 Haulers Reinforced . | . . . . Active Scanning Responses . | . . . . Cargo Convoy Interrupts . | . . . . Stealth | -11 -10 -9 -8 --------- Run | Yrd Mat Mat Mat Distress Signals 7 | . 2 3 2 Communications Jammed . | . . . . Distress Signals . | . . . . Times Spotted 80 | . 22 28 30 Peak Tracking Total 12 | . 12 11 7 Tactical Retreats 16 | . 5 6 5 Traps | -11 -10 -9 -8 ------- Run | Yrd Mat Mat Mat Traps Triggered 4 | . 2 1 1 Indirectly . | . . . . Trap Hack Attempts . | . . . . Triggered . | . . . . Disarmed . | . . . . Reprogrammed 6 | . . . 6 Reused 5 | . . . 5 Traps Extracted . | . . . . Installed . | . . . . Triggered 5 | . . . 5 Machines | -11 -10 -9 -8 ---------- Run | Yrd Mat Mat Mat Machines Disabled 2 | . . . 2 Max in Single Turn 2 | . . . 2 Machines Repaired . | . . . . Machines Dismantled . | . . . . Machines Sabotaged . | . . . . Overloaded Fab Kills . | . . . . Hacking | -11 -10 -9 -8 --------- Run | Yrd Mat Mat Mat Machines Accessed 14 | . 5 7 2 Terminals 11 | . 4 6 1 Fabricators . | . . . . Repair Stations 2 | . . 1 1 Recycling Units 1 | . 1 . . Scanalyzers . | . . . . Garrison Access . | . . . . Total Hacks 38 | . 11 20 7 Successful 19 | . 5 11 3 Failed 19 | . 6 9 4 Catastrophic 1 | . 1 . . Database Lockouts . | . . . . Manual 25 | . 10 15 . Terminals 32 | . 9 17 6 Fabricators . | . . . . Repair Stations 4 | . . 3 1 Recycling Units 2 | . 2 . . Scanalyzers . | . . . . Garrison Access . | . . . . Terminal Hacks 6 | . . 4 2 Part Schematic 1 | . . 1 . Locate Traps 2 | . . 1 1 Reprogram Traps 1 | . . . 1 Recall Reinforcements 1 | . . 1 . Zone Layout 1 | . . 1 . Fabricator Hacks . | . . . . Repair Station Hacks 4 | . . 3 1 Scan Component 1 | . . 1 . Repair 1 | . . 1 . Refit 2 | . . 1 1 Recycling Unit Hacks 1 | . 1 . . Retrieve Components 1 | . 1 . . Scanalyzer . | . . . . Garrison Access Hacks . | . . . . Unauthorized Hacks 8 | . 4 4 . Terminals 7 | . 3 4 . Track 1 | . . 1 . Assimilate 2 | . 2 . . Botnet 1 | . . 1 . Disrupt 1 | . . 1 . Operators 2 | . 1 1 . Fabricators . | . . . . Repair Stations . | . . . . Recycling Units 1 | . 1 . . Tunnel 1 | . 1 . . Scanalyzers . | . . . . Garrison Access . | . . . . Data Cores Recovered . | . . . . Used . | . . . . Hacking Detections 10 | . 2 7 1 Full Trace Events 3 | . 1 2 . Feedback Events . | . . . . Feedback Blocked . | . . . . Robot Schematics Acquired . | . . . . Robots Built . | . . . . Authchips . | . . . . Time . | . . . . Total Robot Build Rating . | . . . . Part Schematics Acquired 1 | . . 1 . Parts Built . | . . . . Authchips . | . . . . Time . | . . . . Total Part Build Rating . | . . . . Parts Repaired 1 | . . 1 . Time 51 | . . 51 . Parts Recycled . | . . . . Recycled Matter . | . . . . Retrieved Matter . | . . . . Retrieved Components 3 | . 3 . . Parts Scanalyzed . | . . . . Part Schematics Acquired . | . . . . Parts Damaged . | . . . . Bothacking | -11 -10 -9 -8 ------------ Run | Yrd Mat Mat Mat Used RIF Installer . | . . . . Robots Hacked 6 | . . 6 . Non-combat 5 | . . 5 . Combat 1 | . . 1 . Robot Hacks Applied 6 | . . 6 . parse_system 2 | . . 2 . no_distress 2 | . . 2 . find_recycling 1 | . . 1 . find_station 1 | . . 1 . Relay Couplers Released . | . . . . Fabnet Peak Effective % . | . . . . Robots Rewired . | . . . . Allies Hacked . | . . . . Hacks Repelled . | . . . . Allies | -11 -10 -9 -8 -------- Run | Yrd Mat Mat Mat Total Allies . | . . . . Largest Group . | . . . . Highest-Rated Group . | . . . . Highest-Rated Ally . | . . . . Total Orders . | . . . . Ally Attacks . | . . . . Total Damage . | . . . . Kills . | . . . . Allies Corrupted . | . . . . Allies Melted . | . . . . Intel | -11 -10 -9 -8 ------- Run | Yrd Mat Mat Mat Active Infowar (turns) 112 | . 16 96 . Structural 27 | . 16 11 . Seismic 85 | . . 85 . Robot Analysis Total . | . . . . Derelict Logs Recovered . | . . . . Drone Launches . | . . . . Drone Recoveries . | . . . . Exploration | -11 -10 -9 -8 ------------- Run | Yrd Mat Mat Mat Turns Passed 1215 | 49 345 451 370 Spaces Moved 1300 | 81 501 431 287 Core 764 | 81 501 133 49 Treads . | . . . . Legs . | . . . . Wheels . | . . . . Hover 536 | . . 298 238 Flight . | . . . . Fastest Speed 50 | 50 50 50 50 Average Speed 55 | 50 50 54 65 Slowest Speed 120 | 50 50 120 100 Overloaded Moves . | . . . . Propulsion Burnouts . | . . . . Robots Hopped . | . . . . Potential Cave-ins . | . . . . Cave-ins Triggered . | . . . . Exploration Rate (%) 39 | 3 70 53 33 Regions Visited 3 Branch Regions . Pre-discovered Areas 1 | . 1 . . Known Exits Taken . | . . . . Unknown Exits Taken 3 | 1 1 1 . Scrap Searched . | . . . . Spaces Dug . | . . . . Terrain Destroyed 32 | . . . 32 Melee . | . . . . Projectile . | . . . . AOE 32 | . . . 32 Terrain Rammed . | . . . . Walls Destroyed . | . . . . Machines Disabled . | . . . . Actions | -11 -10 -9 -8 --------- Run | Yrd Mat Mat Mat Total 1643 | 87 554 607 395 Wait 125 | . 20 80 25 Move 1297 | 80 500 430 287 Hop . | . . . . Pick Up 24 | 1 5 14 4 Fast Attach 27 | 4 3 10 10 Attach 19 | 1 . 10 8 Detach 10 | 1 . 4 5 Swap 2 | . . 2 . Drop 24 | . 2 14 8 Fire 93 | . 20 33 40 Melee 16 | . . 8 8 Ram 2 | . . 2 . Kick . | . . . . Crush 4 | . 4 . . Escape Stasis . | . . . . Rewire . | . . . . Trap . | . . . . Miscellaneous . | . . . . Route ------- -11/Scrapyard -10/Materials (discovered 3 exits: *Mat x2 / [*Min]) -9/Materials (discovered 2 exits: *Mat / [*Sto]) -8/Materials History --------- Turn | Location | Event 6 | -11/Scrapyard | Discovered new exit (range 15) 50 | -11/Scrapyard | Entered Materials 99 | -10/Materials | Discovered new exit (range 13) 224 | -10/Materials | Discovered new exit (range 3) 304 | -10/Materials | Build established: Mutant 323 | -10/Materials | Discovered new exit (range 7) 395 | -10/Materials | Entered another Materials area 395 | -9/Materials | Evolved 2 slots: Utility x2 568 | -9/Materials | Lost 3 parts (1n2w) 688 | -9/Materials | Core integrity fell below 50% 807 | -9/Materials | Repaired Adv. Beam Cannon 813 | -9/Materials | Discovered new exit (range 11) 829 | -9/Materials | Discovered new exit (range 16) 846 | -9/Materials | Entered another Materials area 846 | -8/Materials | Evolved 2 slots: Propulsion x1, Utility x1 920 | -8/Materials | Build established: Hacker-Mutant 984 | -8/Materials | Lost 4 parts (1p2n1w) 1042 | -8/Materials | Core integrity fell below 50% 1076 | -8/Materials | Lost 4 parts (1p2n1w) 1215 | -8/Materials | Core integrity fell below 20% 1216 | -8/Materials | Destroyed by H-61 Shepherd with Heavy Assault Cannon Last Messages --------------- 01186_ ALERT: Suspicious intruders detected, dispatching Cutter reinforcements to area. 01193_ Backup Propulsion I destroyed. 01195_ Acquired System Shield. 01196_ EM Shotgun destroyed. 01202_ Destroyed Lgt. Nuclear Core. 01202_ C-17 Slicer system corrupted by crushing effect. 01207_ Penetrated by Slug. 01207_ Backup Propulsion I destroyed. 01207_ Electrolysis Chamber disabled. 01208_ C-17 Slicer destroyed. 01208_ Backup Power I destroyed. 01210_ Slug penetrates Wall. 01210_ Hacking Suite destroyed. 01210_ Knocked back. 01213_ Slug penetrates Wall. 01214_ Knocked back. 01216_ Slug penetrates Wall. Map ----- +----------------------------------------------------+ | ???????????# #?????????????????????????????????? | | ???????????# #?????????????????????????????????? | | ???????????# #?????????????????????????????????? | | ???????????# #?????????????????????????????????? | | ???????????# #?????????????????????????????????? | | ############ #????????? #????????????????????? | | #????????# #????????????????????? | | #????????+ #????????????????????? | | "" #????????# #????????????????????? | | ## "T #????????# #????????????????????? | | ?# "" =""" #????????# #?????????#??????????? | | ?# [[""" #????????# #??????? ???????????? | | ?# %""" #????????# #?????? ????????????? | | ?# [ [ #????????# #?????? ?????????????? | | ?# ! #????????# #????? #?????????????? | | ?# """ """ #????????# #???? #?????????????? | | ?# """ """ ########## #??? #?????????????? | | ?# """ """ ^ #### +?????????????? | | ?# ^^^ #?????????????? | | ?# ^^ t #?????????????? | | ?# ########### H #?????????????? | | ?# ####### #?????????###*;;## #?????????????? | | ?# #?????# #?????????# !%] !#?????????????????? | | ?# #?????# #?????????# == #?????????????????? | | ?# #?????# #?????????# c% #?????????????????? | | ?# #######+###???????#@ "" #?????????????????? | | ?# # #???????# """ #?????????????????? | | ?# #"" #???????# """ #?????????????????? | | ?# #"T ! #???????########?????????????????? | | ?# #"" #????????????????????????????????? | | ?# # """ #????????????????????????????????? | | ?# +% """ #????????????????????????????????? | | ?# # """ #????????????????????????????????? | | ?# # = #????????????????????????????????? | | ## ###########????????????????????????????????? | | ????????????????????????????????? | | ???????????????????????????????? | | ????????????????????????????????? | | ########### #####????????????????????????????????? | | ????????????#????????????????????????????????????? | | ?????????????????????????????????????????????????? | | ?????????????????????????????????????????????????? | | "????????????????????????????????????????????????? | | " ???????????????????????????????????????????????? | | " ???????????????????????????????????????????????? | | ######???????????????????????????????????????????? | | #???????????????????????????????????????????? | | ########????????????????????????????????????? | | # #????????????????????????????????????? | | ## + #????????????????????????????????????? | +----------------------------------------------------+ Best States ------------- Heat Dissipation 31 Energy Generation 14 Energy Capacity 265 Matter Stores 300 Matter Capacity 300 Sight Range 16 Terrain Scan Density 10 Evasion (%) 54 Recoil Reduction 2 Offensive Hacking 40 Defensive Hacking 10 Item Schematics ----------------- Salvage Targeting Computer | -9/Materials | Hacked Robot Schematics ------------------ None Fabricated ------------ Nothing Repaired ---------- Adv. Beam Cannon | 33% | -9/Materials Alien Tech Used ----------------- None Achievements -------------- None Challenges ------------ None Game ------ Seed DeliverySensorMaul Manual? 0 Play Time 00:20:48 Cumulative 167.1 hours Start 2025.05.11 @ 15:56:46 End 2025.05.12 @ 19:39:14 Sessions 2 Manual Loads 0 Difficulty Rogue Special Mode None Game No. 188 Rogue 188 Adventurer 0 Explorer 0 Win Type - Total 1 Types 1/0/0/0/0/0/0/0/0/0 Lore% 69 Gallery% 68 Achievement% 61 Wizard Run 0 Options --------- Layout 1 ASCII 0 Keyboard 0 Movement Numpad Keybinds 0 Fullscreen 1 Font 24/Smallcaps Map View 50x35 Zoom Use 0% Tactical HUD 1 Map Filters NONE Filters NONE Steam 1 RUN: 0f65fbf5-ff48-4cf2-9eaf-d212c1db3f4c